[Event "Titled Tuesday Blitz March 28 Early 2023"]
[White "Hansen, Eric"]
[Black "Mortazavi, Ali"]
[WhiteFideId "2606771"]
[BlackFideId "401323"]
[WhiteElo "2569"]
[BlackElo "2339"]
[Result "1/2-1/2"]
[Round "01"]
[TimeControl "180+2"]
[Date "2023.03.28"]
[WhiteClock "0:00:01"]
[BlackClock "0:00:44"]

1. c4 {[%clk 0:02:55]}  Nf6 {[%clk 0:02:59]} 2. Nc3 {[%clk 0:02:55]}  g6 {[%clk 0:02:59]} 3. d4 {[%clk 0:02:50]}  Bg7 {[%clk 0:02:58]} 4. e4 {[%clk 0:02:49]}  O-O {[%clk 0:02:59]} 5. Bd3 {[%clk 0:02:48]}  d6 {[%clk 0:02:59]} 6. Nge2 {[%clk 0:02:48]}  Nc6 {[%clk 0:02:47]} 7. f3 {[%clk 0:02:46]}  Nh5 {[%clk 0:02:37]} 8. Be3 {[%clk 0:02:45]}  e5 {[%clk 0:02:37]} 9. d5 {[%clk 0:02:43]}  Nd4 {[%clk 0:02:37]} 10. O-O {[%clk 0:02:43]}  c5 {[%clk 0:02:34]} 11. dxc6 {[%clk 0:02:40]}  bxc6 {[%clk 0:02:34]} 12. b4 {[%clk 0:02:40]}  c5 {[%clk 0:02:24]} 13. bxc5 {[%clk 0:02:37]}  dxc5 {[%clk 0:02:24]} 14. Rb1 {[%clk 0:02:35]}  Be6 {[%clk 0:02:05]} 15. Nd5 {[%clk 0:02:31]}  Bxd5 {[%clk 0:02:02]} 16. cxd5 {[%clk 0:02:29]}  Rc8 {[%clk 0:01:42]} 17. Bc4 {[%clk 0:02:25]}  Kh8 {[%clk 0:01:39]} 18. Rb7 {[%clk 0:02:18]}  Rc7 {[%clk 0:01:27]} 19. Qb1 {[%clk 0:02:13]}  f5 {[%clk 0:01:22]} 20. exf5 {[%clk 0:01:21]}  gxf5 {[%clk 0:01:22]} 21. Bd2 {[%clk 0:01:08]}  Rxb7 {[%clk 0:01:01]} 22. Qxb7 {[%clk 0:01:06]}  Qh4 {[%clk 0:01:02]} 23. Be3 {[%clk 0:00:20]}  Nxf3+ {[%clk 0:00:54]} 24. Rxf3 {[%clk 0:00:21]}  Qxc4 {[%clk 0:00:54]} 25. Ng3 {[%clk 0:00:22]}  Nxg3 {[%clk 0:00:47]} 26. Rxg3 {[%clk 0:00:22]}  Rg8 {[%clk 0:00:42]} 27. Rxg7 {[%clk 0:00:23]}  Rxg7 {[%clk 0:00:42]} 28. Qb8+ {[%clk 0:00:23]}  Rg8 {[%clk 0:00:42]} 29. Qxe5+ {[%clk 0:00:24]}  Rg7 {[%clk 0:00:43]} 30. Qe8+ {[%clk 0:00:13]}  Rg8 {[%clk 0:00:43]} 31. Qe5+ {[%clk 0:00:14]}  Rg7 {[%clk 0:00:43]} 32. Qe8+ {[%clk 0:00:02]}  Rg8 {[%clk 0:00:44]} 33. Qe5+ {[%clk 0:00:01]} 1/2-1/2


[Site "https://www.chess.com"]

[Event "Titled Tuesday Blitz March 28 Early 2023"]
[White "Andreev, Konstantin"]
[Black "Sasikiran, Krishnan"]
[WhiteFideId "24239305"]
[BlackFideId "5004985"]
[WhiteElo "2106"]
[BlackElo "2567"]
[Result "0-1"]
[Round "01"]
[TimeControl "180+2"]
[Date "2023.03.28"]
[WhiteClock "0:01:13"]
[BlackClock "0:01:12"]

1. e4 {[%clk 0:02:59]}  c5 {[%clk 0:02:59]} 2. Nf3 {[%clk 0:02:58]}  d6 {[%clk 0:03:00]} 3. d4 {[%clk 0:02:59]}  cxd4 {[%clk 0:03:01]} 4. Nxd4 {[%clk 0:02:59]}  Nf6 {[%clk 0:03:01]} 5. Nc3 {[%clk 0:03:00]}  a6 {[%clk 0:03:02]} 6. h4 {[%clk 0:03:00]}  e5 {[%clk 0:02:59]} 7. Nb3 {[%clk 0:03:01]}  Be6 {[%clk 0:02:51]} 8. f4 {[%clk 0:03:01]}  g6 {[%clk 0:02:44]} 9. Be2 {[%clk 0:02:58]}  Nc6 {[%clk 0:02:31]} 10. Be3 {[%clk 0:02:48]}  d5 {[%clk 0:02:18]} 11. exd5 {[%clk 0:02:45]}  Nxd5 {[%clk 0:02:17]} 12. Nxd5 {[%clk 0:02:43]}  Bxd5 {[%clk 0:02:12]} 13. Bf3 {[%clk 0:02:39]}  e4 {[%clk 0:02:09]} 14. Be2 {[%clk 0:02:39]}  Bg7 {[%clk 0:02:08]} 15. c3 {[%clk 0:02:36]}  O-O {[%clk 0:02:07]} 16. h5 {[%clk 0:02:36]}  Re8 {[%clk 0:01:59]} 17. Qd2 {[%clk 0:02:36]}  Be6 {[%clk 0:01:55]} 18. O-O-O {[%clk 0:02:34]}  Qc7 {[%clk 0:01:53]} 19. Kb1 {[%clk 0:02:24]}  Rad8 {[%clk 0:01:53]} 20. Qc2 {[%clk 0:02:23]}  Ne7 {[%clk 0:01:53]} 21. g3 {[%clk 0:02:17]}  Nf5 {[%clk 0:01:52]} 22. Bf2 {[%clk 0:02:14]}  e3 {[%clk 0:01:52]} 23. Be1 {[%clk 0:02:08]}  Bd5 {[%clk 0:01:52]} 24. Rh2 {[%clk 0:02:01]}  Be4 {[%clk 0:01:52]} 25. Bd3 {[%clk 0:02:01]}  Rxd3 {[%clk 0:01:48]} 26. Rxd3 {[%clk 0:02:02]}  Bf8 {[%clk 0:01:33]} 27. hxg6 {[%clk 0:01:53]}  hxg6 {[%clk 0:01:29]} 28. Nc1 {[%clk 0:01:28]}  Rd8 {[%clk 0:01:27]} 29. g4 {[%clk 0:01:27]}  Rxd3 {[%clk 0:01:19]} 30. Nxd3 {[%clk 0:01:23]}  Qc4 {[%clk 0:01:19]} 31. Kc1 {[%clk 0:01:14]}  Bxd3 {[%clk 0:01:19]} 32. Qg2 {[%clk 0:01:13]}  Qxa2 {[%clk 0:01:12]} 0-1


[Site "https://www.chess.com"]

[Event "Titled Tuesday Blitz March 28 Early 2023"]
[White "Dardha, Daniel"]
[Black "Bethke, Richard"]
[WhiteFideId "240990"]
[BlackFideId "12959243"]
[WhiteElo "2581"]
[BlackElo "2369"]
[Result "1-0"]
[Round "01"]
[TimeControl "180+2"]
[Date "2023.03.28"]
[WhiteClock "0:02:19"]
[BlackClock "0:01:58"]

1. e4 {[%clk 0:02:58]}  c6 {[%clk 0:02:59]} 2. Qg4 {[%clk 0:02:58]}  d5 {[%clk 0:03:00]} 3. Qg3 {[%clk 0:02:56]}  Nf6 {[%clk 0:02:55]} 4. e5 {[%clk 0:02:51]}  Ne4 {[%clk 0:02:55]} 5. Qf4 {[%clk 0:02:44]}  g5 {[%clk 0:02:34]} 6. Qe3 {[%clk 0:02:42]}  Qa5 {[%clk 0:02:21]} 7. Nc3 {[%clk 0:02:38]}  Nxc3 {[%clk 0:02:19]} 8. dxc3 {[%clk 0:02:39]}  h6 {[%clk 0:02:17]} 9. h4 {[%clk 0:02:39]}  g4 {[%clk 0:02:16]} 10. Ne2 {[%clk 0:02:39]}  Bf5 {[%clk 0:02:15]} 11. Nd4 {[%clk 0:02:39]}  Bg6 {[%clk 0:02:15]} 12. e6 {[%clk 0:02:38]}  f5 {[%clk 0:02:07]} 13. Qe5 {[%clk 0:02:26]}  Rh7 {[%clk 0:01:59]} 14. h5 {[%clk 0:02:19]}  Bg7 {[%clk 0:01:58]} 15. Qf4 {[%clk 0:02:19]} 1-0


[Site "https://www.chess.com"]

[Event "Titled Tuesday Blitz March 28 Early 2023"]
[White "Urbina Perez, Juan Antonio"]
[Black "Mitrabha, Guha"]
[WhiteFideId "2217368"]
[BlackFideId "5057000"]
[WhiteElo "2197"]
[BlackElo "2507"]
[Result "0-1"]
[Round "01"]
[TimeControl "180+2"]
[Date "2023.03.28"]
[WhiteClock "0:01:58"]
[BlackClock "0:02:28"]

1. c4 {[%clk 0:02:59]}  g6 {[%clk 0:02:59]} 2. g3 {[%clk 0:02:54]}  Bg7 {[%clk 0:03:00]} 3. Nf3 {[%clk 0:02:55]}  c5 {[%clk 0:03:00]} 4. Bg2 {[%clk 0:02:55]}  Nc6 {[%clk 0:03:01]} 5. O-O {[%clk 0:02:55]}  e6 {[%clk 0:03:02]} 6. Nc3 {[%clk 0:02:54]}  Nge7 {[%clk 0:03:02]} 7. e3 {[%clk 0:02:51]}  Nf5 {[%clk 0:03:01]} 8. b3 {[%clk 0:02:48]}  O-O {[%clk 0:03:00]} 9. Bb2 {[%clk 0:02:48]}  d5 {[%clk 0:02:59]} 10. cxd5 {[%clk 0:02:42]}  exd5 {[%clk 0:02:59]} 11. d4 {[%clk 0:02:39]}  cxd4 {[%clk 0:02:57]} 12. Nxd4 {[%clk 0:02:39]}  Nfxd4 {[%clk 0:02:56]} 13. Nxd5 {[%clk 0:02:31]}  Nf5 {[%clk 0:02:39]} 14. Bxg7 {[%clk 0:02:28]}  Kxg7 {[%clk 0:02:40]} 15. Qc2 {[%clk 0:02:17]}  Nfe7 {[%clk 0:02:30]} 16. Qb2+ {[%clk 0:02:08]}  f6 {[%clk 0:02:28]} 17. Rfd1 {[%clk 0:02:03]}  Nxd5 {[%clk 0:02:28]} 18. Rxd5 {[%clk 0:02:02]}  Qe7 {[%clk 0:02:28]} 19. Rad1 {[%clk 0:02:00]}  Be6 {[%clk 0:02:28]} 20. Rd6 {[%clk 0:01:58]}  Rad8 {[%clk 0:02:28]} 0-1


[Site "https://www.chess.com"]

[Event "Titled Tuesday Blitz March 28 Early 2023"]
[White "Vasquez Schroeder, Rodrigo"]
[Black "Koc, Przemyslaw"]
[WhiteFideId "3400042"]
[BlackFideId "1109081"]
[WhiteElo "2600"]
[BlackElo "2161"]
[Result "1-0"]
[Round "01"]
[TimeControl "180+2"]
[Date "2023.03.28"]
[WhiteClock "0:01:52"]
[BlackClock "0:00:23"]

1. d4 {[%clk 0:02:56]}  d6 {[%clk 0:02:59]} 2. Nf3 {[%clk 0:02:54]}  Nf6 {[%clk 0:02:59]} 3. c4 {[%clk 0:02:54]}  Nbd7 {[%clk 0:03:00]} 4. Nc3 {[%clk 0:02:54]}  e5 {[%clk 0:03:00]} 5. e4 {[%clk 0:02:53]}  g6 {[%clk 0:02:58]} 6. g3 {[%clk 0:02:53]}  Bg7 {[%clk 0:02:59]} 7. Bg2 {[%clk 0:02:53]}  O-O {[%clk 0:02:59]} 8. O-O {[%clk 0:02:54]}  c6 {[%clk 0:02:55]} 9. Be3 {[%clk 0:02:53]}  a5 {[%clk 0:02:55]} 10. h3 {[%clk 0:02:52]}  Qc7 {[%clk 0:02:54]} 11. Rc1 {[%clk 0:02:50]}  Re8 {[%clk 0:02:52]} 12. Re1 {[%clk 0:02:49]}  h6 {[%clk 0:02:45]} 13. d5 {[%clk 0:02:49]}  c5 {[%clk 0:02:44]} 14. Nd2 {[%clk 0:02:46]}  Nf8 {[%clk 0:02:38]} 15. Kh2 {[%clk 0:02:46]}  g5 {[%clk 0:02:37]} 16. Nf1 {[%clk 0:02:44]}  Ng6 {[%clk 0:02:37]} 17. Bd2 {[%clk 0:02:44]}  Bd7 {[%clk 0:02:35]} 18. Ne3 {[%clk 0:02:33]}  b6 {[%clk 0:02:25]} 19. Bf3 {[%clk 0:02:32]}  a4 {[%clk 0:02:20]} 20. Bg4 {[%clk 0:02:31]}  Nxg4+ {[%clk 0:02:14]} 21. hxg4 {[%clk 0:02:32]}  Reb8 {[%clk 0:01:58]} 22. Qe2 {[%clk 0:02:30]}  Qb7 {[%clk 0:01:50]} 23. Nf5 {[%clk 0:02:30]}  Bf8 {[%clk 0:01:48]} 24. Kg2 {[%clk 0:02:29]}  b5 {[%clk 0:01:48]} 25. Rh1 {[%clk 0:02:22]}  bxc4 {[%clk 0:01:36]} 26. Rb1 {[%clk 0:02:15]}  Bxf5 {[%clk 0:01:27]} 27. gxf5 {[%clk 0:02:14]}  Ne7 {[%clk 0:01:27]} 28. f6 {[%clk 0:02:04]}  Ng6 {[%clk 0:01:27]} 29. Bxg5 {[%clk 0:02:04]}  a3 {[%clk 0:00:43]} 30. Qh5 {[%clk 0:01:54]}  Qc8 {[%clk 0:00:29]} 31. Bxh6 {[%clk 0:01:53]}  Rxb2 {[%clk 0:00:23]} 32. Bg5 {[%clk 0:01:52]} 1-0


[Site "https://www.chess.com"]

[Event "Titled Tuesday Blitz March 28 Early 2023"]
[White "Ibarra Jerez, Jose Carlos"]
[Black "Khamdamova, Afruza"]
[WhiteFideId "2226332"]
[BlackFideId "14210444"]
[WhiteElo "2638"]
[BlackElo "2210"]
[Result "1-0"]
[Round "01"]
[TimeControl "180+2"]
[Date "2023.03.28"]
[WhiteClock "0:00:26"]
[BlackClock "0:00:04"]

1. e4 {[%clk 0:02:56]}  e5 {[%clk 0:03:00]} 2. Nf3 {[%clk 0:02:54]}  Nf6 {[%clk 0:02:59]} 3. Nc3 {[%clk 0:02:53]}  Nc6 {[%clk 0:02:59]} 4. h3 {[%clk 0:02:50]}  d5 {[%clk 0:02:46]} 5. exd5 {[%clk 0:02:50]}  Nxd5 {[%clk 0:02:46]} 6. Bb5 {[%clk 0:02:50]}  Nxc3 {[%clk 0:02:45]} 7. bxc3 {[%clk 0:02:51]}  Bd6 {[%clk 0:02:42]} 8. O-O {[%clk 0:02:50]}  O-O {[%clk 0:02:42]} 9. d4 {[%clk 0:02:50]}  exd4 {[%clk 0:02:42]} 10. cxd4 {[%clk 0:02:50]}  Bf5 {[%clk 0:02:34]} 11. Bg5 {[%clk 0:02:49]}  Qc8 {[%clk 0:02:20]} 12. Re1 {[%clk 0:02:47]}  h6 {[%clk 0:02:19]} 13. Bd2 {[%clk 0:02:45]}  Ne7 {[%clk 0:02:14]} 14. Bf1 {[%clk 0:02:35]}  Ng6 {[%clk 0:02:13]} 15. c4 {[%clk 0:02:32]}  c5 {[%clk 0:02:13]} 16. d5 {[%clk 0:02:31]}  Qd7 {[%clk 0:02:09]} 17. Qb3 {[%clk 0:02:26]}  b6 {[%clk 0:02:09]} 18. Bc3 {[%clk 0:02:18]}  Nf4 {[%clk 0:02:04]} 19. Ne5 {[%clk 0:02:17]}  Qd8 {[%clk 0:01:57]} 20. Bd2 {[%clk 0:02:06]}  Ng6 {[%clk 0:01:24]} 21. f4 {[%clk 0:01:54]}  Re8 {[%clk 0:01:20]} 22. g4 {[%clk 0:01:47]}  Bd7 {[%clk 0:00:50]} 23. Nxd7 {[%clk 0:01:33]}  Qxd7 {[%clk 0:00:50]} 24. Qf3 {[%clk 0:01:33]}  Nh4 {[%clk 0:00:37]} 25. Qf2 {[%clk 0:01:29]}  Ng6 {[%clk 0:00:34]} 26. Bd3 {[%clk 0:01:26]}  Be7 {[%clk 0:00:29]} 27. Bc3 {[%clk 0:01:21]}  Bh4 {[%clk 0:00:25]} 28. Rxe8+ {[%clk 0:01:16]}  Rxe8 {[%clk 0:00:25]} 29. Qf3 {[%clk 0:01:17]}  Qe7 {[%clk 0:00:20]} 30. Bxg6 {[%clk 0:01:09]}  fxg6 {[%clk 0:00:20]} 31. Be5 {[%clk 0:01:10]}  g5 {[%clk 0:00:19]} 32. d6 {[%clk 0:01:09]}  Qe6 {[%clk 0:00:19]} 33. Rd1 {[%clk 0:01:07]}  gxf4 {[%clk 0:00:18]} 34. Bxf4 {[%clk 0:00:53]}  Rd8 {[%clk 0:00:16]} 35. Qd3 {[%clk 0:00:47]}  Rd7 {[%clk 0:00:15]} 36. Kg2 {[%clk 0:00:45]}  a6 {[%clk 0:00:06]} 37. Rd2 {[%clk 0:00:44]}  Bf6 {[%clk 0:00:05]} 38. Re2 {[%clk 0:00:42]}  Qf7 {[%clk 0:00:05]} 39. Qf5 {[%clk 0:00:35]}  Bd4 {[%clk 0:00:05]} 40. a4 {[%clk 0:00:26]}  Qxf5 {[%clk 0:00:04]} 41. gxf5 {[%clk 0:00:27]}  Kf7 {[%clk 0:00:04]} 42. Kf3 {[%clk 0:00:26]}  Bf6 {[%clk 0:00:04]} 43. Ke4 {[%clk 0:00:25]}  Ke8 {[%clk 0:00:04]} 44. Kd5+ {[%clk 0:00:25]}  Kd8 {[%clk 0:00:04]} 45. Kc6 {[%clk 0:00:26]} 1-0


[Site "https://www.chess.com"]

[Event "Titled Tuesday Blitz March 28 Early 2023"]
[White "Pein, Jonathan"]
[Black "Moroni, Luca Jr"]
[WhiteFideId "417092"]
[BlackFideId "865834"]
[WhiteElo "2151"]
[BlackElo "2569"]
[Result "0-1"]
[Round "01"]
[TimeControl "180+2"]
[Date "2023.03.28"]
[WhiteClock "0:00:14"]
[BlackClock "0:00:43"]

1. b3 {[%clk 0:02:59]}  e5 {[%clk 0:02:58]} 2. Bb2 {[%clk 0:02:59]}  Nc6 {[%clk 0:02:58]} 3. e3 {[%clk 0:03:00]}  d5 {[%clk 0:02:58]} 4. Bb5 {[%clk 0:03:00]}  Bd6 {[%clk 0:02:58]} 5. f4 {[%clk 0:03:01]}  f6 {[%clk 0:02:58]} 6. Nc3 {[%clk 0:02:24]}  Ne7 {[%clk 0:02:52]} 7. fxe5 {[%clk 0:02:23]}  fxe5 {[%clk 0:02:50]} 8. d4 {[%clk 0:02:13]}  e4 {[%clk 0:02:40]} 9. Qd2 {[%clk 0:01:52]}  Bg4 {[%clk 0:02:35]} 10. Nge2 {[%clk 0:01:51]}  O-O {[%clk 0:02:35]} 11. O-O-O {[%clk 0:01:44]}  Rf2 {[%clk 0:02:33]} 12. Rdf1 {[%clk 0:01:44]}  Qf8 {[%clk 0:02:32]} 13. Rxf2 {[%clk 0:01:39]}  Qxf2 {[%clk 0:02:30]} 14. Ng3 {[%clk 0:01:23]}  Rf8 {[%clk 0:02:18]} 15. Rf1 {[%clk 0:01:11]}  Qxd2+ {[%clk 0:02:04]} 16. Kxd2 {[%clk 0:01:12]}  Rxf1 {[%clk 0:02:04]} 17. Nxf1 {[%clk 0:01:13]}  Nd8 {[%clk 0:02:02]} 18. Be2 {[%clk 0:01:13]}  Bxe2 {[%clk 0:02:01]} 19. Nxe2 {[%clk 0:01:13]}  Ne6 {[%clk 0:02:00]} 20. c4 {[%clk 0:01:13]}  c6 {[%clk 0:02:00]} 21. Nfg3 {[%clk 0:00:59]}  Kf7 {[%clk 0:01:58]} 22. Bc3 {[%clk 0:00:50]}  g6 {[%clk 0:01:56]} 23. h3 {[%clk 0:00:47]}  h5 {[%clk 0:01:55]} 24. Nf1 {[%clk 0:00:45]}  Kf6 {[%clk 0:01:52]} 25. Kc2 {[%clk 0:00:45]}  Kg5 {[%clk 0:01:51]} 26. Be1 {[%clk 0:00:44]}  Nf5 {[%clk 0:01:50]} 27. Bf2 {[%clk 0:00:41]}  a6 {[%clk 0:01:46]} 28. Nfg3 {[%clk 0:00:37]}  Bxg3 {[%clk 0:01:39]} 29. Nxg3 {[%clk 0:00:38]}  Nh4 {[%clk 0:01:37]} 30. cxd5 {[%clk 0:00:31]}  cxd5 {[%clk 0:01:38]} 31. Ne2 {[%clk 0:00:29]}  Nxg2 {[%clk 0:01:34]} 32. Nc3 {[%clk 0:00:30]}  Nc7 {[%clk 0:01:27]} 33. Kd2 {[%clk 0:00:30]}  Nh4 {[%clk 0:01:06]} 34. Bg3 {[%clk 0:00:30]}  Ne6 {[%clk 0:01:04]} 35. Nxd5 {[%clk 0:00:29]}  Nf5 {[%clk 0:01:04]} 36. Be5 {[%clk 0:00:16]}  Kh4 {[%clk 0:01:00]} 37. Nf4 {[%clk 0:00:16]}  Nxf4 {[%clk 0:00:57]} 38. Bxf4 {[%clk 0:00:17]}  g5 {[%clk 0:00:56]} 39. Be5 {[%clk 0:00:16]}  Kxh3 {[%clk 0:00:47]} 40. Ke2 {[%clk 0:00:16]}  Kg2 {[%clk 0:00:47]} 41. d5 {[%clk 0:00:16]}  h4 {[%clk 0:00:47]} 42. d6 {[%clk 0:00:16]}  Nxd6 {[%clk 0:00:46]} 43. Bxd6 {[%clk 0:00:17]}  h3 {[%clk 0:00:45]} 44. b4 {[%clk 0:00:13]}  g4 {[%clk 0:00:45]} 45. Bh2 {[%clk 0:00:14]}  Kxh2 {[%clk 0:00:43]} 0-1


[Site "https://www.chess.com"]

[Event "Titled Tuesday Blitz March 28 Early 2023"]
[White "Shapiro, Viktor"]
[Black "Ider, Borya"]
[WhiteFideId "4175700"]
[BlackFideId "4901134"]
[WhiteElo "2152"]
[BlackElo "2512"]
[Result "0-1"]
[Round "01"]
[TimeControl "180+2"]
[Date "2023.03.28"]
[WhiteClock "0:02:13"]
[BlackClock "0:02:38"]

1. c4 {[%clk 0:02:54]}  e6 {[%clk 0:02:59]} 2. Nc3 {[%clk 0:02:53]}  d5 {[%clk 0:02:59]} 3. d4 {[%clk 0:02:53]}  Nf6 {[%clk 0:02:57]} 4. Nf3 {[%clk 0:02:51]}  Nbd7 {[%clk 0:02:56]} 5. Bg5 {[%clk 0:02:50]}  c6 {[%clk 0:02:56]} 6. e3 {[%clk 0:02:50]}  Qa5 {[%clk 0:02:57]} 7. Nd2 {[%clk 0:02:50]}  Bb4 {[%clk 0:02:56]} 8. Qc2 {[%clk 0:02:49]}  c5 {[%clk 0:02:54]} 9. Nb3 {[%clk 0:02:43]}  Qa4 {[%clk 0:02:52]} 10. a3 {[%clk 0:02:32]}  Bxc3+ {[%clk 0:02:42]} 11. bxc3 {[%clk 0:02:22]}  dxc4 {[%clk 0:02:39]} 12. Bxf6 {[%clk 0:02:13]}  gxf6 {[%clk 0:02:38]} 0-1


[Site "https://www.chess.com"]

[Event "Titled Tuesday Blitz March 28 Early 2023"]
[White "Nguyen Hong Nhung"]
[Black "Grigoriants, Sergey"]
[WhiteFideId "12412201"]
[BlackFideId "4130804"]
[WhiteElo "1904"]
[BlackElo "2502"]
[Result "0-1"]
[Round "01"]
[TimeControl "180+2"]
[Date "2023.03.28"]
[WhiteClock "0:01:34"]
[BlackClock "0:01:41"]

1. e4 {[%clk 0:02:58]}  c5 {[%clk 0:02:57]} 2. Nc3 {[%clk 0:02:57]}  e6 {[%clk 0:02:57]} 3. f4 {[%clk 0:02:57]}  d5 {[%clk 0:02:56]} 4. Nf3 {[%clk 0:02:56]}  dxe4 {[%clk 0:02:56]} 5. Nxe4 {[%clk 0:02:57]}  Be7 {[%clk 0:02:55]} 6. g3 {[%clk 0:02:56]}  Nf6 {[%clk 0:02:54]} 7. d3 {[%clk 0:02:55]}  b6 {[%clk 0:02:48]} 8. Bg2 {[%clk 0:02:54]}  Bb7 {[%clk 0:02:46]} 9. Nxf6+ {[%clk 0:02:53]}  Bxf6 {[%clk 0:02:46]} 10. O-O {[%clk 0:02:53]}  O-O {[%clk 0:02:45]} 11. Rb1 {[%clk 0:02:41]}  Qc7 {[%clk 0:02:43]} 12. Qe2 {[%clk 0:02:41]}  Nc6 {[%clk 0:02:42]} 13. Be3 {[%clk 0:02:39]}  Nd4 {[%clk 0:02:29]} 14. Qf2 {[%clk 0:02:34]}  Rad8 {[%clk 0:02:25]} 15. Rfd1 {[%clk 0:02:28]}  Nf5 {[%clk 0:02:14]} 16. Bd2 {[%clk 0:02:10]}  h5 {[%clk 0:02:14]} 17. Bc3 {[%clk 0:02:06]}  Bd4 {[%clk 0:02:08]} 18. Bxd4 {[%clk 0:01:51]}  cxd4 {[%clk 0:02:06]} 19. Rdc1 {[%clk 0:01:45]}  Rd6 {[%clk 0:02:01]} 20. c3 {[%clk 0:01:44]}  dxc3 {[%clk 0:01:58]} 21. Rxc3 {[%clk 0:01:45]}  Qd8 {[%clk 0:01:50]} 22. Rd1 {[%clk 0:01:42]}  Bd5 {[%clk 0:01:44]} 23. a3 {[%clk 0:01:40]}  Qa8 {[%clk 0:01:44]} 24. Ng5 {[%clk 0:01:35]}  Bxg2 {[%clk 0:01:43]} 25. Qxg2 {[%clk 0:01:33]}  Qxg2+ {[%clk 0:01:43]} 26. Kxg2 {[%clk 0:01:34]}  Ne3+ {[%clk 0:01:44]} 27. Kf3 {[%clk 0:01:35]}  Nxd1 {[%clk 0:01:44]} 28. Rc7 {[%clk 0:01:35]}  Nxb2 {[%clk 0:01:43]} 29. Rxa7 {[%clk 0:01:34]}  Nxd3 {[%clk 0:01:41]} 0-1


[Site "https://www.chess.com"]

[Event "Titled Tuesday Blitz March 28 Early 2023"]
[White "Rakhmanov, Aleksandr"]
[Black "Novikov, Evgenij"]
[WhiteFideId "4173708"]
[BlackFideId "4125380"]
[WhiteElo "2530"]
[BlackElo "2242"]
[Result "1-0"]
[Round "01"]
[TimeControl "180+2"]
[Date "2023.03.28"]
[WhiteClock "0:01:26"]
[BlackClock "0:00:21"]

1. c4 {[%clk 0:02:54]}  e6 {[%clk 0:02:59]} 2. e4 {[%clk 0:02:53]}  d5 {[%clk 0:03:00]} 3. exd5 {[%clk 0:02:54]}  exd5 {[%clk 0:03:01]} 4. d4 {[%clk 0:02:54]}  Nf6 {[%clk 0:02:59]} 5. Nc3 {[%clk 0:02:55]}  c6 {[%clk 0:02:57]} 6. Bd3 {[%clk 0:02:52]}  dxc4 {[%clk 0:02:57]} 7. Bxc4 {[%clk 0:02:52]}  Be7 {[%clk 0:02:56]} 8. Nge2 {[%clk 0:02:53]}  O-O {[%clk 0:02:56]} 9. O-O {[%clk 0:02:53]}  Nbd7 {[%clk 0:02:57]} 10. Re1 {[%clk 0:02:53]}  Nb6 {[%clk 0:02:57]} 11. Bb3 {[%clk 0:02:54]}  Bf5 {[%clk 0:02:53]} 12. Ng3 {[%clk 0:02:54]}  Bg6 {[%clk 0:02:53]} 13. f4 {[%clk 0:02:55]}  h6 {[%clk 0:02:43]} 14. f5 {[%clk 0:02:55]}  Bh7 {[%clk 0:02:43]} 15. Bf4 {[%clk 0:02:56]}  Bd6 {[%clk 0:02:27]} 16. Be5 {[%clk 0:02:36]}  c5 {[%clk 0:01:29]} 17. Bxf6 {[%clk 0:02:10]}  Qxf6 {[%clk 0:01:11]} 18. Nce4 {[%clk 0:02:09]}  Qe7 {[%clk 0:01:06]} 19. Qg4 {[%clk 0:01:40]}  Qc7 {[%clk 0:00:45]} 20. Nh5 {[%clk 0:01:27]}  Bxh2+ {[%clk 0:00:22]} 21. Kh1 {[%clk 0:01:27]}  Be5 {[%clk 0:00:23]} 22. dxe5 {[%clk 0:01:25]}  Qxe5 {[%clk 0:00:22]} 23. Nef6+ {[%clk 0:01:26]}  Qxf6 {[%clk 0:00:21]} 24. Nxf6+ {[%clk 0:01:26]} 1-0


[Site "https://www.chess.com"]